fUST/lending_fUST_20250430
["ID","MTS","AMOUNT","RATE_DAILY","PERIOD"]
[359386014,1745965876324,-2784.61,0.0003358,2]
[359386015,1745965876333,-501.16,0.0003358,2]
[359386016,1745965876345,-1202.0,0.0003358,2]
[359386017,1745965876355,-719.18,0.0003358,2]
[359386018,1745965876365,-1358.32,0.0003358,2]
[359386019,1745965876374,-4215.29,0.0003358,2]
[359386020,1745965876383,-489.54,0.0003358,2]
[359386021,1745965876393,-452.10125868,0.00033698,2]
[359386022,1745965876402,-438.84177193,0.00033698,2]
[359386023,1745965876412,-487.7990665,0.00033698,2]
[359386024,1745965876421,-616.57178358,0.00033698,2]
[359386025,1745965876431,-757.23882545,0.00033698,2]
[359386026,1745965876441,-599.66030729,0.00033698,2]
[359386027,1745965876452,-1130.68343575,0.00033698,2]
[359386028,1745965876462,-871.74123697,0.00033698,2]
[359386029,1745965876472,-2618.25667384,0.00033698,2]
[359386030,1745965876481,-418.84271498,0.00033698,2]
[359386031,1745965876490,-934.11747966,0.00033698,2]
[359386032,1745965876500,-1118.7,0.00033698,2]
[359386033,1745965876510,-405.90838363,0.00033698,2]
[359386034,1745965876521,-731.21460629,0.00033698,2]
[359386035,1745965876530,-567.04544203,0.00033698,2]
[359386036,1745965876540,-893.99149094,0.00033698,2]
[359386037,1745965876550,-731.81774493,0.00033698,2]
[359386038,1745965876560,-1275.53976749,0.00033698,2]
[359386039,1745965876570,-445.97398364,0.00033698,2]
[359386040,1745965876579,-1753.88,0.00033698,2]
[359386041,1745965876590,-445.04266873,0.00033698,2]
[359386042,1745965876600,-672.41065436,0.00033698,2]
[359386043,1745965876610,-1367.84643406,0.00033698,2]
[359386044,1745965876620,-1033.06484338,0.00033698,2]
[359386045,1745965876631,-743.61116059,0.00033698,2]
[359386046,1745965876642,-207.69932421,0.00033698,2]
[359386047,1745965876874,-505.92067128,0.00033698,2]
[359386048,1745965876883,-402.16968008,0.00033698,2]
[359386049,1745965876893,-3764.86631624,0.00033698,2]
[359386050,1745965876902,-3094.37279214,0.00033698,2]
[359386051,1745965876912,-417.66915075,0.00033698,2]
[359386052,1745965876922,-193.97466245,0.00033698,2]
[359386053,1745965876931,-774.06856755,0.00033698,2]
[359386054,1745965876943,-1191.73795047,0.00033698,2]
[359386055,1745965876952,-948.08383885,0.00033698,2]
[359386056,1745965876962,-1212.82115744,0.00033698,2]
[359386057,1745965876971,-829.1142997,0.00033698,2]
[359386058,1745965876981,-618.76405062,0.00033698,2]
[359386059,1745965876990,-2209.62712195,0.00033698,2]
[359386060,1745965877000,-779.77,0.00033698,2]
[359386061,1745965877009,-285.73784248,0.00033698,2]
[359386062,1745965877250,-417.21,0.00027397,2]
[359386063,1745965877260,-400.0,0.00027553,2]
[359386064,1745965877270,-400.0,0.00027827,2]
[359386065,1745965877279,-212.1,0.00028101,2]
[359386066,1745965877289,-178.1145589,0.00029489,2]
[359386067,1745965877299,-102.56566808,0.00033698,2]
[359386068,1745965877308,-574.91084315,0.00033698,2]
[359386069,1745965877319,-1051.39907961,0.00033698,2]
[359386070,1745965877329,-2169.4598223,0.00033698,2]
[359386071,1745965877339,-817.47097284,0.00033698,2]
[359386072,1745965877349,-962.2269486,0.00033698,2]
[359386073,1745965877359,-776.35535792,0.00033698,2]
[359386074,1745965877368,-2082.64423393,0.00033698,2]
[359386075,1745965877377,-1118.49,0.00033698,2]
[359386076,1745965877387,-2334.83750478,0.00033698,2]
[359386077,1745965877396,-439.55761748,0.00033698,2]
[359386078,1745965877405,-436.56381526,0.00033698,2]
[359386079,1745965877416,-1554.72388189,0.00033698,2]
[359386080,1745965877425,-1199.92851882,0.00033698,2]
[359386081,1745965877435,-1621.44117644,0.00033698,2]
[359386082,1745965877447,-633.60000015,0.00033698,2]
[359386083,1745965877458,-352.13012553,0.00033698,2]
[359386084,1745965877468,-550.39739811,0.00033698,2]
[359386085,1745965877477,-1329.89238026,0.00033698,2]
[359386086,1745965877487,-5657.31766317,0.00033698,2]
[359386087,1745965877496,-755.53841693,0.00033698,2]
[359386088,1745965877841,-1573.23057943,0.00033698,2]
[359386089,1745965877852,-806.56142257,0.00033698,2]
[359386090,1745965878033,-592.17866354,0.00033698,2]
[359386091,1745965878043,-516.92,0.00033698,2]
[359386092,1745965878052,-2596.53974516,0.00033728,11]
[359386093,1745965878062,-1000.0,0.00033752,5]
[359386094,1745965878073,-501.17337227,0.00033752,5]
[359386095,1745965878083,-1000.0,0.00033752,5]
[359386096,1745965878092,-418.76453013,0.00033854,2]
[359386097,1745965878102,-478.11896468,0.00033854,2]
[359386098,1745965878112,-463.17720619,0.00033854,2]
[359386099,1745965878121,-963.55448263,0.00033854,2]
[359386100,1745965878132,-465.27186271,0.00033854,2]
[359386101,1745965878141,-806.84675486,0.00033854,2]
[359386102,1745965878150,-410.78438149,0.00033854,2]
[359386103,1745965878160,-1263.9414072,0.00033854,2]
[359386104,1745965878171,-453.98540558,0.00033854,2]
[359386105,1745965878180,-1383.42392135,0.00033854,2]
[359386106,1745965878190,-512.06,0.00033854,2]
[359386107,1745965878199,-728.46444506,0.00033854,2]
[359386108,1745965878209,-1423.01288997,0.00033854,2]
[359386109,1745965878218,-2294.98276953,0.00033854,2]
[359386110,1745965878227,-409.90829938,0.00033854,2]
[359386111,1745965878237,-937.8982458,0.00033854,2]
[359386112,1745965878246,-1024.57763224,0.00033854,2]
[359386113,1745965878256,-2784.61783891,0.00033854,2]
[359386114,1745965878265,-501.39075174,0.00033854,2]
[359386115,1745965878275,-1202.12975706,0.00033854,2]
[359386116,1745965878395,-719.24019874,0.00033854,2]
[359386117,1745965878406,-1358.43198123,0.00033854,2]
[359386118,1745965878416,-4215.35515143,0.00033854,2]
[359386119,1745965878426,-489.63712813,0.00033854,2]
[359386120,1745965878437,-850.0,0.00033908,5]
[359386121,1745965878446,-818.21156499,0.00034176,11]
[359386122,1745965878458,-1683.54995247,0.00034176,11]
[359386124,1745966407904,-168.079485,0.00025918,2]
[359386125,1745966419167,-510.92820272,0.00025893,2]
[359386126,1745966429833,-300.0,0.00025893,2]
[359386127,1745966435354,-1000.0,0.00025893,2]
[359386137,1745966968631,400.0,0.00027397,30]
[359386165,1745967032134,-8643.9799001,0.00025548,2]
[359386167,1745967032144,-1000.0,0.00025793,2]
[359386169,1745967032154,-160.0,0.00025861,2]
[359386172,1745967032164,-2738.85792598,0.00025893,2]
[359386174,1745967032174,-172.53017,0.00025893,2]
[359386176,1745967032183,-207.4,0.00026337,2]
[359386178,1745967032193,-151.25846906,0.00026337,2]
[359386180,1745967032202,-1200.0,0.00026368,2]
[359386182,1745967032211,-300.0,0.00026369,2]
[359386184,1745967032226,-300.0,0.00026369,2]
[359386186,1745967032235,-300.0,0.00026369,2]
[359386188,1745967032245,-50000.0,0.00026369,2]
[359386190,1745967032255,-8703.3766243,0.00026372,2]
[359386192,1745967032265,-1436.16212955,0.000269,7]
[359386194,1745967032275,-1697.13024978,0.00027283,2]
[359386196,1745967032284,-1436.16212952,0.00027383,7]
[359386198,1745967032296,-2393.46249426,0.00027471,2]
[359386200,1745967032306,-317.44999887,0.00027561,2]
[359386202,1745967032316,-212.89,0.00027561,3]
[359386203,1745967032325,-638.67,0.00027561,3]
[359386204,1745967032335,-530.38624334,0.0002757,2]
[359386205,1745967032345,-319890.96890907,0.00027571,2]
[359386206,1745967032354,-504.38493982,0.00027573,5]
[359386207,1745967032364,-502.0186315,0.00027573,5]
[359386208,1745967032373,-500.0,0.00027573,5]
[359386209,1745967032383,-501.67226845,0.00027573,5]
[359386210,1745967032393,-300.0,0.0002765,5]
[359386211,1745967032403,-161.70297821,0.0002765,5]
[359386212,1745967032412,-500.0,0.0002765,5]
[359386213,1745967032422,-500.0,0.0002765,2]
[359386214,1745967032431,-501.72240751,0.0002765,2]
[359386215,1745967032441,-509.45358802,0.0002765,5]
[359386216,1745967032451,-500.0,0.0002765,5]
[359386217,1745967032460,-500.0,0.0002765,5]
[359386218,1745967032470,-500.0,0.0002765,5]
[359386219,1745967032480,-500.0,0.0002765,5]
[359386220,1745967032489,-254.28061889,0.0002765,5]
[359386221,1745967032499,-500.0,0.00027723,5]
[359386222,1745967032509,-477.4710604,0.00027723,5]
[359386223,1745967032518,-501.06835788,0.00027723,5]
[359386224,1745967032527,-500.35426851,0.00027723,5]
[359386225,1745967032537,-500.0,0.00027723,5]
[359386226,1745967032546,-164.66635779,0.00027723,5]
[359386227,1745967032556,-504.61599494,0.00027723,5]
[359386228,1745967032566,-500.0,0.00027723,5]
[359386229,1745967032575,-444.38006007,0.00027723,5]
[359386230,1745967032585,-500.0,0.00027723,5]
[359386231,1745967032594,-500.0,0.00027723,5]
[359386232,1745967032604,-500.0,0.00027723,5]
[359386233,1745967032613,-500.0,0.00027723,5]
[359386234,1745967032623,-300.35428161,0.00027762,2]
[359386235,1745967032633,-500.0,0.00027806,5]
[359386236,1745967032643,-365.90777987,0.00027806,5]
[359386237,1745967032653,-500.0,0.00027806,5]
[359386238,1745967032663,-2781.4,0.00027827,2]
[359386239,1745967032672,-2781.4,0.00027827,2]
[359386240,1745967032682,-621.36475532,0.00027831,5]
[359386241,1745967032692,-500.0,0.00027831,5]
[359386242,1745967032701,-500.0,0.00027831,2]
[359386243,1745967032711,-500.0,0.00027847,2]
[359386244,1745967032722,-450.54130739,0.00027847,5]
[359386245,1745967032733,-622.75991694,0.00027847,5]
[359386246,1745967032744,-500.0,0.00027847,5]
[359386247,1745967032754,-500.0,0.00027847,5]
[359386248,1745967032764,-500.0,0.00027847,5]
[359386249,1745967032936,-1436.16212952,0.00027866,7]
[359386250,1745967032946,-500.0,0.00027869,5]
[359386251,1745967032955,-2393.46249426,0.00028225,2]
[359386252,1745967032965,-1436.16212952,0.00028348,7]
[359386253,1745967032975,-1000.0,0.00028395,5]
[359386254,1745967032984,-420.0,0.00028526,2]
[359386255,1745967032994,-420.0,0.00028526,2]
[359386256,1745967033004,-420.0,0.00028526,2]
[359386257,1745967033013,-947.0,0.00028652,2]
[359386258,1745967033023,-153.0,0.00028685,2]
[359386259,1745967033033,-153.0,0.00028686,2]
[359386260,1745967033043,-153.0,0.00028686,2]
[359386261,1745967033053,-153.0,0.00028686,2]
[359386262,1745967033062,-153.0,0.00028686,2]
[359386263,1745967033072,-153.0,0.00028686,2]
[359386264,1745967033082,-153.0,0.00028686,2]
[359386265,1745967033091,-153.0,0.00028686,2]
[359386266,1745967033101,-153.0,0.00028686,2]
[359386267,1745967033111,-153.0,0.00028686,2]
[359386268,1745967033120,-153.0,0.00028686,2]
[359386269,1745967033130,-153.0,0.00028686,2]
[359386270,1745967033139,-153.0,0.00028686,2]
[359386271,1745967033149,-153.0,0.00028686,2]
[359386272,1745967033158,-153.0,0.00028686,2]
[359386273,1745967033168,-153.0,0.00028686,2]
[359386274,1745967033178,-153.0,0.00028686,2]
[359386275,1745967033187,-153.0,0.00028686,2]
[359386276,1745967033197,-153.0,0.00028686,2]
[359386277,1745967033207,-160.0,0.0002875,2]
[359386278,1745967033220,-160.0,0.0002875,2]
[359386279,1745967033230,-160.0,0.0002875,2]
[359386280,1745967033239,-421.28334683,0.0002875,2]
[359386281,1745967033249,-12589.54207618,0.0002875,2]
[359386282,1745967033258,-160.0,0.0002875,2]
[359386283,1745967033268,-840.73483787,0.0002875,2]
[359386284,1745967033277,-1436.16212952,0.00028831,8]
[359386285,1745967033288,-425.78,0.00028931,3]
[359386286,1745967033297,-1500.0,0.00028943,5]
[359386287,1745967033307,-2393.46249426,0.00028979,2]
[359386288,1745967033317,-1697.13024972,0.0002911,2]
[359386289,1745967033326,-644.664,0.00029196,22]
[359386290,1745967033336,-600.0,0.00029294,5]
[359386291,1745967033346,-1436.16212952,0.00029314,8]
[359386292,1745967033355,-176.818,0.00029315,22]
[359386293,1745967033365,-2000.0,0.00029491,5]
[359386294,1745967033375,-2393.46249426,0.00029732,2]
[359386295,1745967033384,-1436.16212952,0.00029797,8]
[359386296,1745967033394,-217.40686726,0.0002986,11]
[359386297,1745967033403,-500.0,0.0002986,11]
[359386298,1745967033413,-2500.0,0.00030038,5]
[359386299,1745967033423,-2245.0,0.00030087,2]
[359386300,1745967033433,-717.723,0.00030087,2]
[359386301,1745967033443,-1436.16212952,0.00030279,9]
[359386302,1745967033453,-172.53017,0.00030459,2]
[359386303,1745967033462,-2393.46249426,0.00030486,2]
[359386304,1745967033471,-2860.94082189,0.00030586,5]
[359386305,1745967033484,-139.05917811,0.00030586,5]
[359386306,1745967033494,-1436.16212952,0.00030762,9]
[359386307,1745967033504,-167.0,0.0003086,2]
[359386308,1745967033514,-587.0,0.0003086,2]
[359386309,1745967033523,-167.0,0.0003086,2]
[359386310,1745967033533,-1697.13024972,0.00030936,2]
[359386311,1745967033542,-3500.0,0.00031134,5]
[359386312,1745967033552,-1436.16212952,0.00031245,9]
[359386313,1745967033561,-4000.0,0.00031682,5]
[359386314,1745967033570,-1436.16212952,0.00031728,10]
[359386315,1745967033580,-206.3616328,0.00032161,4]
[359386316,1745967033590,-1436.16212952,0.0003221,10]
[359386317,1745967033599,-4500.0,0.0003223,5]
[359386318,1745967033608,-1436.16212952,0.00032693,10]
[359386319,1745967033619,-1697.13024972,0.00032763,2]
[359386320,1745967033628,-306.0,0.00032767,30]
[359386321,1745967033637,-608.01615924,0.00032778,5]
[359386333,1745967038063,-500.0,0.0002757,2]
[359386334,1745967038073,-500.0,0.0002757,2]
[359386335,1745967038082,-500.0,0.0002757,2]
[359386336,1745967038091,-500.0,0.0002757,2]
[359386337,1745967038100,-500.0,0.0002757,2]
[359386338,1745967038110,-500.0,0.0002757,2]
[359386339,1745967038119,-500.0,0.0002757,2]
[359386340,1745967038128,-147.92052878,0.0002757,2]
[359386341,1745967038140,-352.07947122,0.0002757,2]
[359386342,1745967038150,-500.0,0.0002757,2]
[359386343,1745967038160,-500.0,0.0002757,2]
[359386344,1745967038169,-500.0,0.0002757,2]
[359386345,1745967038178,-500.0,0.0002757,2]
[359386346,1745967038187,-500.0,0.0002757,2]
[359386347,1745967038196,-500.0,0.0002757,2]
[359386348,1745967038206,-500.0,0.0002757,2]
[359386349,1745967038215,-500.0,0.0002757,2]
[359386350,1745967038229,-500.0,0.0002757,2]
[359386351,1745967038239,-500.0,0.0002757,2]
[359386352,1745967038250,-500.0,0.0002757,2]
[359386353,1745967038261,-500.0,0.0002757,2]
[359386354,1745967038270,-500.0,0.0002757,2]
[359386355,1745967038280,-500.0,0.0002757,2]
[359386356,1745967038289,-500.0,0.0002757,2]
[359386357,1745967038303,-500.0,0.0002757,2]
[359386358,1745967038312,-500.0,0.0002757,2]
[359386359,1745967038321,-500.0,0.0002757,2]
[359386360,1745967038330,-160.0,0.0002875,2]
[359386361,1745967038340,-1780.38133394,0.00032778,5]
[359386362,1745967038349,-500.0,0.00032873,5]
[359386363,1745967038358,-622.74790831,0.00032873,5]
[359386364,1745967038368,-500.0,0.00032873,5]
[359386365,1745967038377,-500.0,0.00032873,5]
[359386366,1745967038387,-500.0,0.00032873,5]
[359386367,1745967038396,-548.84182386,0.00032873,5]
[359386368,1745967038405,-500.0,0.00032873,5]
[359386369,1745967038416,-500.0,0.00032873,5]
[359386370,1745967038425,-502.39372866,0.00032873,5]
[359386371,1745967038435,-500.0,0.00032873,5]
[359386372,1745967038446,-500.0,0.00032873,5]
[359386373,1745967038456,-500.70145363,0.00032873,5]
[359386374,1745967038466,-500.0,0.00032873,5]
[359386375,1745967038476,-500.0,0.00032873,5]
[359386376,1745967038486,-500.0,0.00032873,5]
[359386377,1745967038495,-151.0,0.00032899,2]
[359386378,1745967038505,-151.0,0.00032899,2]
[359386379,1745967038515,-151.0,0.00032899,2]
[359386380,1745967038524,-151.0,0.00032899,2]
[359386381,1745967038534,-151.0,0.00032899,2]
[359386382,1745967038544,-151.0,0.00032899,2]
[359386383,1745967038554,-82949.58,0.000329,30]
[359386384,1745967038564,-305.67,0.000329,7]
[359386385,1745967038574,-3881.25,0.000329,30]
[359386386,1745967038584,-15976.56,0.000329,30]
[359386387,1745967038593,-160.0,0.000329,30]
[359386388,1745967038602,-1000.0,0.00033052,5]
[359386389,1745967038612,-2245.0,0.00033087,2]
[359386390,1745967038621,-707.0,0.00033087,2]
[359386391,1745967038631,-1000.0,0.00033129,5]
[359386392,1745967038641,-1000.0,0.00033129,5]
[359386393,1745967038650,-1000.0,0.00033129,5]
[359386394,1745967038659,-1436.16212952,0.00033176,11]
[359386395,1745967038669,-1000.0,0.00033203,5]
[359386396,1745967038679,-1000.0,0.00033203,5]
[359386397,1745967038691,-450.71886184,0.00033326,2]
[359386398,1745967038701,-1000.0,0.00033326,5]
[359386399,1745967038710,-237.25972672,0.00033326,5]
[359386400,1745967038720,-500.0,0.00033433,5]
[359386401,1745967038731,-151.0,0.000335,10]
[359386402,1745967038741,-1436.16212952,0.00033659,11]
[359386403,1745967038753,-200.0,0.00033702,14]
[359386404,1745967038762,-206.0,0.0003381,30]
[359386405,1745967038772,-307.53,0.000341,44]
[359386406,1745967038782,-305.67,0.000341,7]
[359386407,1745967038792,-3881.25,0.000341,30]
[359386408,1745967038802,-1436.16212952,0.00034141,11]
[359386409,1745967038815,-15976.56,0.000342,30]
[359386410,1745967038827,-206.0,0.0003428,30]
[359386411,1745967038839,-151.0,0.000343,17]
[359386412,1745967038851,-175.0338901,0.00034438,30]
[359386413,1745967038864,-175.0338901,0.00034438,30]
[359386414,1745967038876,-175.0338901,0.00034438,30]
[359386415,1745967038887,-175.0338901,0.00034438,30]
[359386416,1745967038900,-181.0402895,0.00034438,30]
[359386417,1745967038912,-174.9531212,0.00034438,30]
[359386418,1745967038922,-82949.58,0.000345,30]
[359386419,1745967038936,-1697.13024972,0.0003459,2]
[359386420,1745967038947,-1436.16212952,0.00034624,12]
[359386421,1745967038959,-206.0,0.0003475,30]
[359386422,1745967038970,-150.0,0.00034873,5]
[359386423,1745967038982,-211.63333258,0.0003489,2]
[359386424,1745967038993,-153.89,0.00034899,2]
[359386425,1745967039003,-153.89,0.00034899,2]
[359386426,1745967039015,-51161.93016162,0.000349,2]
[359386438,1745967040622,-0.05600935,0.000349,2]
[359386445,1745967043745,-165.0893063,0.00033155,4]
[359386446,1745967043757,-118815.91206641,0.000349,2]
[359386447,1745967043769,-32104.26690685,0.00034998,2]
[359386448,1745967043780,-156115.17950744,0.00035,30]
[359386449,1745967043792,-165.43480547,0.00035,10]
[359386450,1745967043804,-201.38472995,0.00035,10]
[359386451,1745967043815,-264.20647822,0.00035,30]
[359386452,1745967043826,-89824.49509564,0.00035,4]
[359386453,1745967043837,-40741.04166949,0.00035,30]
[359386454,1745967043849,-172.53017,0.00035025,2]
[359386455,1745967043860,-1436.16212952,0.00035107,12]
[359386456,1745967043870,-5000.0,0.00035137,2]
[359386457,1745967043881,-206.0,0.0003522,30]
[359386458,1745967043891,-305.67,0.000354,7]
[359386459,1745967043901,-3881.25,0.000354,30]
[359386460,1745967043911,-250.0,0.00035421,5]
[359386461,1745967043921,-12687.03449109,0.000355,30]
[359386468,1745967046108,-403.0,0.00030192,2]
[359386469,1745967046121,-97.0,0.000355,30]
[359386484,1745968039095,-250.0,0.00025693,2]
[359386485,1745968039117,-1000.0,0.00025693,2]
[359386486,1745968039139,-162.174838,0.00027397,2]
[359386487,1745968039159,-237.807928,0.00027786,2]
[359386488,1745968039180,-172.53017,0.00028136,2]
[359386489,1745968039201,-160.0,0.0002875,2]
[359386490,1745968039223,-160.0,0.0002875,2]
[359386491,1745968039243,-160.0,0.0002875,2]
[359386492,1745968039277,-500.0,0.0002986,11]
[359386493,1745968039300,-1200.0,0.00029899,2]
[359386494,1745968039322,-400.0,0.00030126,2]
[359386495,1745968039345,-933.80247867,0.00030127,2]
[359386496,1745968039367,-394.49,0.00030215,2]
[359386497,1745968039388,-707.0,0.00030215,2]
[359386498,1745968039410,-255.671,0.00030215,2]
[359386499,1745968039432,-224.2513977,0.00030227,2]
[359386500,1745968039454,-192.415482,0.00030614,2]
[359386501,1745968039476,-933.80247867,0.00031545,2]
[359386502,1745968039498,-933.80247867,0.00032964,2]
[359386503,1745968039519,-165.0893063,0.0003338,4]
[359386504,1745968039540,-515.731,0.00033451,35]
[359386505,1745968039562,-176.81889913,0.00033451,35]
[359386506,1745968039587,-175.86185914,0.00033872,2]
[359386507,1745968039611,-296.52117541,0.0003397,7]
[359386508,1745968039633,-500.0,0.0003397,7]
[359386509,1745968039656,-500.0,0.0003397,7]
[359386510,1745968039677,-500.0,0.0003397,7]
[359386511,1745968039704,-500.0,0.0003397,2]
[359386512,1745968039727,-500.0,0.0003397,7]
[359386513,1745968039748,-500.0,0.0003397,7]
[359386514,1745968039771,-500.0,0.0003397,7]
[359386515,1745968039791,-500.0,0.0003397,7]
[359386516,1745968039811,-255.20584338,0.0003397,7]
[359386517,1745968040019,-500.0,0.0003397,2]
[359386518,1745968040042,-402.59553072,0.0003397,7]
[359386519,1745968040064,-500.0,0.0003397,7]
[359386520,1745968040085,-500.0,0.0003397,7]
[359386521,1745968040109,-500.0,0.0003397,7]
[359386522,1745968040137,-500.0,0.0003397,2]
[359386523,1745968040157,-409.10290609,0.0003397,7]
[359386524,1745968040179,-500.0,0.0003397,7]
[359386525,1745968040204,-500.0,0.0003397,2]
[359386526,1745968040225,-500.0,0.0003397,7]
[359386527,1745968040246,-500.0,0.0003397,7]
[359386528,1745968040273,-500.0,0.0003397,2]
[359386529,1745968040295,-283.74805321,0.0003397,7]
[359386530,1745968040316,-500.0,0.0003397,7]
[359386531,1745968040338,-500.0,0.0003397,7]
[359386532,1745968040369,-500.0,0.0003397,2]
[359386533,1745968040392,-500.0,0.0003397,7]
[359386534,1745968040413,-500.0,0.0003397,7]
[359386535,1745968040440,-500.0,0.0003397,2]
[359386536,1745968040461,-500.0,0.0003397,7]
[359386537,1745968040491,-500.0,0.0003397,2]
[359386538,1745968040512,-500.0,0.0003397,7]
[359386539,1745968040539,-500.0,0.0003397,2]
[359386540,1745968040561,-500.0,0.0003397,7]
[359386541,1745968040594,-500.0,0.0003397,2]
[359386542,1745968040616,-500.0,0.0003397,7]
[359386543,1745968040643,-500.0,0.0003397,2]
[359386544,1745968040666,-500.0,0.0003397,7]
[359386545,1745968040691,-500.0,0.0003397,7]
[359386546,1745968040718,-500.0,0.0003397,2]
[359386547,1745968040740,-500.0,0.0003397,7]
[359386548,1745968040767,-500.0,0.0003397,2]
[359386549,1745968040789,-500.0,0.0003397,7]
[359386550,1745968040816,-500.0,0.0003397,2]
[359386551,1745968040838,-500.0,0.0003397,7]
[359386552,1745968040868,-500.0,0.0003397,2]
[359386553,1745968040891,-500.0,0.0003397,7]
[359386554,1745968040914,-500.0,0.0003397,7]
[359386555,1745968040935,-500.0,0.0003397,7]
[359386556,1745968040957,-500.0,0.0003397,7]
[359386557,1745968040978,-500.0,0.0003397,7]
[359386558,1745968040999,-500.0,0.0003397,7]
[359386559,1745968041022,-500.0,0.0003397,7]
[359386560,1745968041052,-500.0,0.0003397,2]
[359386561,1745968041075,-500.0,0.0003397,7]
[359386562,1745968041104,-500.0,0.0003397,2]
[359386563,1745968041127,-500.0,0.0003397,7]
[359386564,1745968041156,-500.0,0.0003397,2]
[359386565,1745968041178,-500.0,0.0003397,7]
[359386566,1745968041208,-500.0,0.0003397,2]
[359386567,1745968041236,-500.0,0.0003397,2]
[359386568,1745968041264,-500.0,0.0003397,2]
[359386569,1745968041292,-500.0,0.0003397,2]
[359386570,1745968041319,-500.0,0.0003397,2]
[359386571,1745968041348,-500.0,0.0003397,2]
[359386572,1745968041376,-500.0,0.0003397,2]
[359386573,1745968041403,-500.0,0.0003397,2]
[359386574,1745968041430,-500.0,0.0003397,2]
[359386575,1745968041456,-647.07518157,0.0003397,2]
[359386576,1745968041481,-500.0,0.0003397,2]
[359386577,1745968041508,-500.0,0.0003397,2]
[359386578,1745968041538,-500.0,0.0003397,2]
[359386579,1745968041571,-500.0,0.0003397,2]
[359386580,1745968041598,-500.0,0.0003397,2]
[359386581,1745968041624,-500.0,0.0003397,2]
[359386582,1745968041647,-500.0,0.0003397,7]
[359386583,1745968041670,-500.0,0.0003397,7]
[359386584,1745968041692,-500.0,0.0003397,7]
[359386585,1745968041718,-1259.97557096,0.0003397,2]
[359386586,1745968041744,-500.0,0.0003397,7]
[359386587,1745968041772,-1259.97557096,0.0003397,2]
[359386588,1745968041794,-650.0,0.0003397,7]
[359386589,1745968041820,-1259.97557096,0.0003397,2]
[359386590,1745968041845,-500.0,0.0003397,7]
[359386591,1745968041866,-500.0,0.0003397,7]
[359386592,1745968041892,-1259.97557096,0.0003397,2]
[359386593,1745968041913,-500.0,0.0003397,7]
[359386594,1745968041939,-1259.97557096,0.0003397,2]
[359386595,1745968041961,-500.0,0.0003397,7]
[359386596,1745968041987,-1259.97557096,0.0003397,2]
[359386597,1745968042009,-500.0,0.0003397,7]
[359386598,1745968042036,-1259.97557096,0.0003397,2]
[359386599,1745968042058,-500.0,0.0003397,7]
[359386600,1745968042080,-500.0,0.0003397,7]
[359386601,1745968042107,-1259.97557096,0.0003397,2]
[359386602,1745968042128,-500.0,0.0003397,7]
[359386603,1745968042154,-1259.97557096,0.0003397,2]
[359386604,1745968042176,-500.0,0.0003397,7]
[359386605,1745968042202,-1259.97557096,0.0003397,2]
[359386606,1745968042223,-500.0,0.0003397,7]
[359386607,1745968042254,-1259.97557096,0.0003397,2]
[359386608,1745968042280,-1259.97557096,0.0003397,2]
[359386609,1745968042305,-1259.97557096,0.0003397,2]
[359386610,1745968042332,-1259.97557096,0.0003397,2]
[359386611,1745968042357,-1259.97557096,0.0003397,2]
[359386612,1745968042386,-1259.97557096,0.0003397,2]
[359386613,1745968042414,-1259.97557096,0.0003397,2]
[359386614,1745968042439,-1259.97557096,0.0003397,2]
[359386615,1745968042466,-1259.97557096,0.0003397,2]
[359386616,1745968042493,-1259.97557096,0.0003397,2]
[359386617,1745968042519,-1259.97557096,0.0003397,2]